[Event "December 12 Early 2023"]
[Site "https://www.chess.com"]
[Date "2023.12.12"]
[Round "1"]
[White "Gong, Qianyun"]
[Black "Daroczi, Donat"]
[Result "0-1"]
[Board "185"]
[TimeControl "180+1"]
[WhiteFideId "8602425"]
[BlackFideId "788376"]
[WhiteElo "2589"]
[BlackElo "2253"]
[WhiteTeam "SGP"]
[BlackTeam "HUN"]
[WhiteClock "0:00:17"]
[BlackClock "0:00:05"]

1. e4 {[%clk 0:03:00]}  Nc6 {[%clk 0:02:58]} 2. Nf3 {[%clk 0:03:00]}  d6 {[%clk 0:02:58]} 3. d4 {[%clk 0:02:58]}  g6 {[%clk 0:02:57]} 4. Nc3 {[%clk 0:02:58]}  Bg7 {[%clk 0:02:56]} 5. h3 {[%clk 0:02:57]}  e5 {[%clk 0:02:54]} 6. d5 {[%clk 0:02:50]}  Nd4 {[%clk 0:02:55]} 7. Be3 {[%clk 0:02:50]}  Nxf3+ {[%clk 0:02:54]} 8. Qxf3 {[%clk 0:02:51]}  Ne7 {[%clk 0:02:54]} 9. g4 {[%clk 0:02:39]}  O-O {[%clk 0:02:51]} 10. Rg1 {[%clk 0:02:38]}  c6 {[%clk 0:02:46]} 11. O-O-O {[%clk 0:02:29]}  cxd5 {[%clk 0:02:42]} 12. exd5 {[%clk 0:02:25]}  f5 {[%clk 0:02:41]} 13. gxf5 {[%clk 0:02:23]}  Nxf5 {[%clk 0:02:34]} 14. Bg5 {[%clk 0:02:13]}  Qa5 {[%clk 0:01:54]} 15. Qd3 {[%clk 0:01:50]}  Nd4 {[%clk 0:01:47]} 16. Qc4 {[%clk 0:01:09]}  Rxf2 {[%clk 0:01:21]} 17. Bd3 {[%clk 0:01:06]}  Bf5 {[%clk 0:00:21]} 18. Be3 {[%clk 0:00:55]}  Bxd3 {[%clk 0:00:02]} 19. cxd3 {[%clk 0:00:54]}  Rc2+ {[%clk 0:00:02]} 20. Kb1 {[%clk 0:00:53]}  Rh2 {[%clk 0:00:02]} 21. Bxd4 {[%clk 0:00:48]}  exd4 {[%clk 0:00:03]} 22. Ne4 {[%clk 0:00:44]}  Qb6 {[%clk 0:00:04]} 23. b3 {[%clk 0:00:38]}  a5 {[%clk 0:00:04]} 24. Rc1 {[%clk 0:00:20]}  a4 {[%clk 0:00:04]} 25. b4 {[%clk 0:00:20]}  a3 {[%clk 0:00:04]} 26. Ka1 {[%clk 0:00:20]}  Qd8 {[%clk 0:00:04]} 27. Rgf1 {[%clk 0:00:19]}  Qh4 {[%clk 0:00:04]} 28. Nxd6 {[%clk 0:00:18]}  Qg3 {[%clk 0:00:03]} 29. Qc8+ {[%clk 0:00:18]}  Rxc8 {[%clk 0:00:03]} 30. Rxc8+ {[%clk 0:00:19]}  Bf8 {[%clk 0:00:04]} 31. Rcxf8+ {[%clk 0:00:19]}  Kg7 {[%clk 0:00:04]} 32. R8f7+ {[%clk 0:00:19]}  Kh6 {[%clk 0:00:05]} 33. R7f6 {[%clk 0:00:19]}  Qg2 {[%clk 0:00:05]} 34. Nf5+ {[%clk 0:00:19]}  Kg5 {[%clk 0:00:05]} 35. Rxg6+ {[%clk 0:00:18]}  hxg6 {[%clk 0:00:05]} 36. Rf2 {[%clk 0:00:17]}  Qg1+ {[%clk 0:00:05]} 37. Rf1 {[%clk 0:00:17]}  Qxf1# {[%clk 0:00:05]} 0-1

[Event "December 12 Early 2023"]
[Site "https://www.chess.com"]
[Date "2023.12.12"]
[Round "1"]
[White "Cremisi, Daniel"]
[Black "Ratnesan, Ranesh"]
[Result "1-0"]
[Board "187"]
[TimeControl "180+1"]
[WhiteFideId "2089882"]
[BlackFideId "439339"]
[WhiteElo "2585"]
[BlackElo "2243"]
[WhiteTeam "USA"]
[BlackTeam "ENG"]
[WhiteClock "0:01:27"]
[BlackClock "0:00:05"]

1. d4 {[%clk 0:03:00]}  d5 {[%clk 0:02:58]} 2. c4 {[%clk 0:03:00]}  e6 {[%clk 0:02:55]} 3. Nc3 {[%clk 0:03:01]}  Nf6 {[%clk 0:02:55]} 4. cxd5 {[%clk 0:03:01]}  exd5 {[%clk 0:02:55]} 5. Bg5 {[%clk 0:03:00]}  c6 {[%clk 0:02:55]} 6. e3 {[%clk 0:03:01]}  Be7 {[%clk 0:02:55]} 7. Bd3 {[%clk 0:03:01]}  Nbd7 {[%clk 0:02:49]} 8. Qc2 {[%clk 0:03:01]}  h6 {[%clk 0:02:49]} 9. Bh4 {[%clk 0:03:00]}  Nh5 {[%clk 0:02:49]} 10. Bxe7 {[%clk 0:03:00]}  Qxe7 {[%clk 0:02:50]} 11. Nge2 {[%clk 0:03:00]}  Nb6 {[%clk 0:02:48]} 12. O-O {[%clk 0:03:00]}  O-O {[%clk 0:02:48]} 13. Rab1 {[%clk 0:02:57]}  a5 {[%clk 0:02:44]} 14. b3 {[%clk 0:02:57]}  Bd7 {[%clk 0:02:36]} 15. Qb2 {[%clk 0:02:50]}  Nc8 {[%clk 0:02:25]} 16. a3 {[%clk 0:02:49]}  Nd6 {[%clk 0:02:24]} 17. b4 {[%clk 0:02:49]}  axb4 {[%clk 0:02:25]} 18. axb4 {[%clk 0:02:50]}  b5 {[%clk 0:02:25]} 19. Ra1 {[%clk 0:02:43]}  f5 {[%clk 0:01:53]} 20. Nf4 {[%clk 0:02:40]}  Nxf4 {[%clk 0:01:52]} 21. exf4 {[%clk 0:02:40]}  Ne4 {[%clk 0:01:48]} 22. f3 {[%clk 0:02:36]}  Nd6 {[%clk 0:01:48]} 23. Rfe1 {[%clk 0:02:31]}  Qf6 {[%clk 0:01:47]} 24. Re5 {[%clk 0:02:30]}  Nf7 {[%clk 0:01:46]} 25. Ne2 {[%clk 0:02:19]}  Rxa1+ {[%clk 0:01:35]} 26. Qxa1 {[%clk 0:02:18]}  Nxe5 {[%clk 0:01:35]} 27. dxe5 {[%clk 0:02:18]}  Qe7 {[%clk 0:01:33]} 28. Qa5 {[%clk 0:02:14]}  Qd8 {[%clk 0:01:28]} 29. Qa7 {[%clk 0:02:11]}  Bc8 {[%clk 0:01:12]} 30. Nd4 {[%clk 0:02:08]}  Qd7 {[%clk 0:01:02]} 31. Qc5 {[%clk 0:02:00]}  Bb7 {[%clk 0:00:57]} 32. e6 {[%clk 0:02:00]}  Qe8 {[%clk 0:00:49]} 33. Bxf5 {[%clk 0:01:57]}  Rf6 {[%clk 0:00:41]} 34. Bh3 {[%clk 0:01:46]}  Rxf4 {[%clk 0:00:40]} 35. e7 {[%clk 0:01:43]}  Kh8 {[%clk 0:00:21]} 36. Qd6 {[%clk 0:01:36]}  Rf7 {[%clk 0:00:19]} 37. Nf5 {[%clk 0:01:32]}  Bc8 {[%clk 0:00:15]} 38. Qd8 {[%clk 0:01:32]}  Bd7 {[%clk 0:00:15]} 39. Nd6 {[%clk 0:01:28]}  Rxe7 {[%clk 0:00:07]} 40. Nxe8 {[%clk 0:01:27]}  Re1+ {[%clk 0:00:05]} 41. Kf2 {[%clk 0:01:27]}  Rxe8 {[%clk 0:00:05]} 42. Qxd7 {[%clk 0:01:27]} 1-0

[Event "December 12 Early 2023"]
[Site "https://www.chess.com"]
[Date "2023.12.12"]
[Round "1"]
[White "Rodriguez Avila, Alvaro"]
[Black "Ismagilov, Damir"]
[Result "1-0"]
[Board "192"]
[TimeControl "180+1"]
[WhiteFideId "24570249"]
[BlackFideId "34199982"]
[WhiteElo "2234"]
[BlackElo "2579"]
[WhiteTeam "ESP"]
[BlackTeam "RUS"]
[WhiteClock "0:00:03"]
[BlackClock "0:00:00"]

1. e4 {[%clk 0:02:58]}  e5 {[%clk 0:02:57]} 2. Nf3 {[%clk 0:02:58]}  Nc6 {[%clk 0:02:56]} 3. Bb5 {[%clk 0:02:58]}  a6 {[%clk 0:02:55]} 4. Ba4 {[%clk 0:02:59]}  Nf6 {[%clk 0:02:53]} 5. O-O {[%clk 0:02:59]}  Be7 {[%clk 0:02:49]} 6. Re1 {[%clk 0:02:58]}  b5 {[%clk 0:02:47]} 7. Bb3 {[%clk 0:02:58]}  O-O {[%clk 0:02:43]} 8. a4 {[%clk 0:02:57]}  Bb7 {[%clk 0:02:33]} 9. d3 {[%clk 0:02:54]}  d6 {[%clk 0:02:33]} 10. c3 {[%clk 0:02:47]}  Na5 {[%clk 0:02:29]} 11. Ba2 {[%clk 0:02:42]}  c5 {[%clk 0:02:29]} 12. Nbd2 {[%clk 0:02:30]}  Qd7 {[%clk 0:02:16]} 13. axb5 {[%clk 0:02:24]}  axb5 {[%clk 0:02:14]} 14. Nf1 {[%clk 0:02:03]}  c4 {[%clk 0:02:12]} 15. Ng3 {[%clk 0:02:04]}  Rfc8 {[%clk 0:02:03]} 16. Nf5 {[%clk 0:01:53]}  Bf8 {[%clk 0:01:58]} 17. Bg5 {[%clk 0:01:43]}  Ne8 {[%clk 0:01:49]} 18. d4 {[%clk 0:01:39]}  Qe6 {[%clk 0:01:41]} 19. d5 {[%clk 0:01:35]}  Qd7 {[%clk 0:01:36]} 20. Qd2 {[%clk 0:01:30]}  f6 {[%clk 0:01:07]} 21. Be3 {[%clk 0:01:30]}  g6 {[%clk 0:01:02]} 22. Ng3 {[%clk 0:01:30]}  Rcb8 {[%clk 0:00:45]} 23. h4 {[%clk 0:01:30]}  Qg4 {[%clk 0:00:43]} 24. h5 {[%clk 0:01:23]}  Bc8 {[%clk 0:00:40]} 25. hxg6 {[%clk 0:01:13]}  hxg6 {[%clk 0:00:41]} 26. Nh2 {[%clk 0:01:14]}  Qh4 {[%clk 0:00:38]} 27. Qe2 {[%clk 0:00:53]}  f5 {[%clk 0:00:33]} 28. exf5 {[%clk 0:00:38]}  gxf5 {[%clk 0:00:34]} 29. Bd2 {[%clk 0:00:31]}  Ng7 {[%clk 0:00:30]} 30. Nf3 {[%clk 0:00:30]}  Qg4 {[%clk 0:00:29]} 31. Ng5 {[%clk 0:00:30]}  Qxe2 {[%clk 0:00:28]} 32. Nxe2 {[%clk 0:00:24]}  Nb7 {[%clk 0:00:22]} 33. b3 {[%clk 0:00:20]}  cxb3 {[%clk 0:00:19]} 34. Bxb3 {[%clk 0:00:21]}  Nc5 {[%clk 0:00:20]} 35. Bc2 {[%clk 0:00:21]}  Be7 {[%clk 0:00:18]} 36. Ng3 {[%clk 0:00:18]}  Bf6 {[%clk 0:00:09]} 37. Reb1 {[%clk 0:00:18]}  e4 {[%clk 0:00:07]} 38. Rxa8 {[%clk 0:00:16]}  Rxa8 {[%clk 0:00:06]} 39. Rxb5 {[%clk 0:00:14]}  Be5 {[%clk 0:00:04]} 40. Be3 {[%clk 0:00:04]}  Bd7 {[%clk 0:00:04]} 41. Rb6 {[%clk 0:00:02]}  Na4 {[%clk 0:00:03]} 42. Rb7 {[%clk 0:00:02]}  Be8 {[%clk 0:00:02]} 43. Rxg7+ {[%clk 0:00:02]}  Kxg7 {[%clk 0:00:00]} 44. Nxf5+ {[%clk 0:00:03]} 1-0

[Event "December 12 Early 2023"]
[Site "https://www.chess.com"]
[Date "2023.12.12"]
[Round "1"]
[White "Onslow, Alfie"]
[Black "Taboas Rodriguez, Daniel"]
[Result "0-1"]
[Board "194"]
[TimeControl "180+1"]
[WhiteFideId "436976"]
[BlackFideId "2208466"]
[WhiteElo "2231"]
[BlackElo "2578"]
[WhiteTeam "ENG"]
[BlackTeam "ESP"]
[WhiteClock "0:00:00"]
[BlackClock "0:01:42"]

1. e4 {[%clk 0:03:00]}  e5 {[%clk 0:02:59]} 2. Bc4 {[%clk 0:03:00]}  Nf6 {[%clk 0:02:58]} 3. d3 {[%clk 0:03:00]}  Nc6 {[%clk 0:02:56]} 4. Nc3 {[%clk 0:03:00]}  Bc5 {[%clk 0:02:56]} 5. f4 {[%clk 0:03:00]}  d6 {[%clk 0:02:56]} 6. f5 {[%clk 0:03:00]}  Na5 {[%clk 0:02:53]} 7. Nf3 {[%clk 0:02:54]}  Nxc4 {[%clk 0:02:52]} 8. dxc4 {[%clk 0:02:52]}  h6 {[%clk 0:02:51]} 9. Qe2 {[%clk 0:02:49]}  b6 {[%clk 0:02:50]} 10. a3 {[%clk 0:02:36]}  a5 {[%clk 0:02:50]} 11. Nd5 {[%clk 0:02:24]}  Nxd5 {[%clk 0:02:45]} 12. cxd5 {[%clk 0:02:22]}  Ba6 {[%clk 0:02:41]} 13. c4 {[%clk 0:02:11]}  Qd7 {[%clk 0:02:37]} 14. Bd2 {[%clk 0:02:04]}  Qa4 {[%clk 0:02:35]} 15. Rc1 {[%clk 0:02:02]}  Qb3 {[%clk 0:02:31]} 16. Bc3 {[%clk 0:01:28]}  Bxc4 {[%clk 0:02:16]} 17. Nd2 {[%clk 0:01:27]}  Qxc3 {[%clk 0:01:54]} 18. Rxc3 {[%clk 0:00:54]}  Bxe2 {[%clk 0:01:54]} 19. Kxe2 {[%clk 0:00:52]}  a4 {[%clk 0:01:53]} 20. g4 {[%clk 0:00:45]}  O-O-O {[%clk 0:01:54]} 21. h4 {[%clk 0:00:23]}  Kd7 {[%clk 0:01:54]} 22. h5 {[%clk 0:00:02]}  Ra8 {[%clk 0:01:53]} 23. Rf3 {[%clk 0:00:02]}  f6 {[%clk 0:01:43]} 24. Rd3 {[%clk 0:00:01]}  Ra5 {[%clk 0:01:44]} 25. Nb1 {[%clk 0:00:00]}  Rb5 {[%clk 0:01:42]} 0-1

[Event "December 12 Early 2023"]
[Site "https://www.chess.com"]
[Date "2023.12.12"]
[Round "1"]
[White "Vincenti, Leonardo"]
[Black "Saravana, Krishnan P."]
[Result "0-1"]
[Board "196"]
[TimeControl "180+1"]
[WhiteFideId "28550820"]
[BlackFideId "5018382"]
[WhiteElo "2230"]
[BlackElo "2574"]
[WhiteTeam "ITA"]
[BlackTeam "IND"]
[WhiteClock "0:00:03"]
[BlackClock "0:01:05"]

1. e4 {[%clk 0:02:57]}  c6 {[%clk 0:02:59]} 2. d4 {[%clk 0:02:57]}  d5 {[%clk 0:02:59]} 3. e5 {[%clk 0:02:57]}  Qb6 {[%clk 0:02:58]} 4. c3 {[%clk 0:02:53]}  Bf5 {[%clk 0:02:57]} 5. Bd3 {[%clk 0:02:52]}  Bxd3 {[%clk 0:02:56]} 6. Qxd3 {[%clk 0:02:50]}  e6 {[%clk 0:02:56]} 7. Nf3 {[%clk 0:02:46]}  Nd7 {[%clk 0:02:56]} 8. h4 {[%clk 0:02:32]}  Ne7 {[%clk 0:02:56]} 9. h5 {[%clk 0:02:32]}  h6 {[%clk 0:02:55]} 10. Nbd2 {[%clk 0:02:28]}  c5 {[%clk 0:02:55]} 11. Qe2 {[%clk 0:02:19]}  Nc6 {[%clk 0:02:54]} 12. Nb3 {[%clk 0:02:19]}  cxd4 {[%clk 0:02:42]} 13. cxd4 {[%clk 0:02:20]}  a5 {[%clk 0:02:42]} 14. Be3 {[%clk 0:01:58]}  a4 {[%clk 0:02:42]} 15. Nc1 {[%clk 0:01:57]}  Bb4+ {[%clk 0:02:42]} 16. Kf1 {[%clk 0:01:57]}  a3 {[%clk 0:02:42]} 17. Nd3 {[%clk 0:01:47]}  axb2 {[%clk 0:02:39]} 18. Qxb2 {[%clk 0:01:46]}  Qa6 {[%clk 0:02:36]} 19. Qe2 {[%clk 0:01:40]}  Bc3 {[%clk 0:02:35]} 20. Rc1 {[%clk 0:01:39]}  Bb4 {[%clk 0:02:28]} 21. Rc2 {[%clk 0:01:28]}  Be7 {[%clk 0:02:26]} 22. g3 {[%clk 0:01:14]}  O-O {[%clk 0:02:24]} 23. Kg2 {[%clk 0:01:14]}  Nb6 {[%clk 0:02:12]} 24. Nd2 {[%clk 0:00:39]}  Nb4 {[%clk 0:02:08]} 25. Rc3 {[%clk 0:00:38]}  Nxa2 {[%clk 0:02:08]} 26. Rb3 {[%clk 0:00:32]}  Nb4 {[%clk 0:02:06]} 27. Rhb1 {[%clk 0:00:25]}  Nxd3 {[%clk 0:02:03]} 28. Qxd3 {[%clk 0:00:19]}  Nc4 {[%clk 0:02:00]} 29. Rxb7 {[%clk 0:00:14]}  Rfe8 {[%clk 0:01:58]} 30. Rc7 {[%clk 0:00:11]}  Rac8 {[%clk 0:01:48]} 31. Rxc8 {[%clk 0:00:11]}  Rxc8 {[%clk 0:01:47]} 32. Nb3 {[%clk 0:00:05]}  Qa2 {[%clk 0:01:43]} 33. Rc1 {[%clk 0:00:03]}  Rb8 {[%clk 0:01:34]} 34. Nd2 {[%clk 0:00:02]}  Nxe3+ {[%clk 0:01:28]} 35. Qxe3 {[%clk 0:00:03]}  Bg5 {[%clk 0:01:28]} 36. f4 {[%clk 0:00:02]}  Rb2 {[%clk 0:01:28]} 37. Rd1 {[%clk 0:00:01]}  Be7 {[%clk 0:01:26]} 38. Kf3 {[%clk 0:00:01]}  Bb4 {[%clk 0:01:25]} 39. Ke2 {[%clk 0:00:01]}  Bxd2 {[%clk 0:01:19]} 40. Rxd2 {[%clk 0:00:01]}  Qc4+ {[%clk 0:01:19]} 41. Qd3 {[%clk 0:00:01]}  Qxd3+ {[%clk 0:01:16]} 42. Kxd3 {[%clk 0:00:02]}  Rb3+ {[%clk 0:01:16]} 43. Kc2 {[%clk 0:00:02]}  Rxg3 {[%clk 0:01:16]} 44. Rf2 {[%clk 0:00:01]}  Rh3 {[%clk 0:01:16]} 45. f5 {[%clk 0:00:02]}  Rxh5 {[%clk 0:01:16]} 46. fxe6 {[%clk 0:00:02]}  fxe6 {[%clk 0:01:17]} 47. Rg2 {[%clk 0:00:02]}  Rh3 {[%clk 0:01:16]} 48. Rg1 {[%clk 0:00:02]}  g5 {[%clk 0:01:16]} 49. Rb1 {[%clk 0:00:02]}  Kg7 {[%clk 0:01:16]} 50. Rb7+ {[%clk 0:00:02]}  Kg6 {[%clk 0:01:16]} 51. Re7 {[%clk 0:00:03]}  Kf5 {[%clk 0:01:16]} 52. Rf7+ {[%clk 0:00:03]}  Ke4 {[%clk 0:01:16]} 53. Rf6 {[%clk 0:00:04]}  Kxd4 {[%clk 0:01:16]} 54. Rxe6 {[%clk 0:00:04]}  Rh2+ {[%clk 0:01:16]} 55. Kd1 {[%clk 0:00:04]}  g4 {[%clk 0:01:16]} 56. Rg6 {[%clk 0:00:04]}  Kxe5 {[%clk 0:01:13]} 57. Rxg4 {[%clk 0:00:04]}  d4 {[%clk 0:01:14]} 58. Rg3 {[%clk 0:00:04]}  h5 {[%clk 0:01:13]} 59. Ra3 {[%clk 0:00:04]}  h4 {[%clk 0:01:12]} 60. Ra8 {[%clk 0:00:04]}  Ke4 {[%clk 0:01:12]} 61. Ra3 {[%clk 0:00:03]}  h3 {[%clk 0:01:11]} 62. Rb3 {[%clk 0:00:02]}  Rh1+ {[%clk 0:01:09]} 63. Ke2 {[%clk 0:00:02]}  h2 {[%clk 0:01:10]} 64. Rh3 {[%clk 0:00:01]}  Ra1 {[%clk 0:01:09]} 65. Rh4+ {[%clk 0:00:01]}  Kd5 {[%clk 0:01:10]} 66. Kd3 {[%clk 0:00:01]}  h1=Q {[%clk 0:01:05]} 67. Rxd4+ {[%clk 0:00:01]}  Ke5 {[%clk 0:01:05]} 68. Rg4 {[%clk 0:00:01]}  Qf3+ {[%clk 0:01:04]} 69. Kd2 {[%clk 0:00:01]}  Rd1+ {[%clk 0:01:03]} 70. Kc2 {[%clk 0:00:01]}  Qd3+ {[%clk 0:01:04]} 71. Kb2 {[%clk 0:00:02]}  Rb1+ {[%clk 0:01:04]} 72. Ka2 {[%clk 0:00:03]}  Qb3# {[%clk 0:01:05]} 0-1

[Event "December 12 Early 2023"]
[Site "https://www.chess.com"]
[Date "2023.12.12"]
[Round "1"]
[White "Bettalli, Francesco"]
[Black "Adelman, Charles"]
[Result "1-0"]
[Board "197"]
[TimeControl "180+1"]
[WhiteFideId "2816453"]
[BlackFideId "2003597"]
[WhiteElo "2572"]
[BlackElo "2223"]
[WhiteTeam "ITA"]
[BlackTeam "USA"]
[WhiteClock "0:02:24"]
[BlackClock "0:01:47"]

1. d4 {[%clk 0:03:00]}  Nf6 {[%clk 0:03:00]} 2. Nc3 {[%clk 0:03:00]}  d6 {[%clk 0:03:00]} 3. e4 {[%clk 0:03:00]}  Nbd7 {[%clk 0:03:00]} 4. Nf3 {[%clk 0:03:00]}  e5 {[%clk 0:03:00]} 5. h3 {[%clk 0:02:59]}  Be7 {[%clk 0:03:00]} 6. Bc4 {[%clk 0:02:59]}  O-O {[%clk 0:03:00]} 7. O-O {[%clk 0:02:59]}  c6 {[%clk 0:03:00]} 8. a4 {[%clk 0:02:59]}  a5 {[%clk 0:03:00]} 9. Bg5 {[%clk 0:02:58]}  Qe8 {[%clk 0:03:00]} 10. Re1 {[%clk 0:02:57]}  Bd8 {[%clk 0:02:59]} 11. Qd2 {[%clk 0:02:56]}  Bc7 {[%clk 0:02:58]} 12. d5 {[%clk 0:02:55]}  Qe7 {[%clk 0:02:57]} 13. Rad1 {[%clk 0:02:55]}  Nc5 {[%clk 0:02:57]} 14. b3 {[%clk 0:02:54]}  Bd7 {[%clk 0:02:51]} 15. Nh2 {[%clk 0:02:49]}  h6 {[%clk 0:02:46]} 16. Bxf6 {[%clk 0:02:48]}  Qxf6 {[%clk 0:02:44]} 17. Ng4 {[%clk 0:02:48]}  Qe7 {[%clk 0:02:44]} 18. Ne3 {[%clk 0:02:47]}  Rad8 {[%clk 0:02:41]} 19. f3 {[%clk 0:02:45]}  Bc8 {[%clk 0:02:39]} 20. Ne2 {[%clk 0:02:46]}  Bb6 {[%clk 0:02:38]} 21. Kh1 {[%clk 0:02:45]}  Kh8 {[%clk 0:02:36]} 22. Ng3 {[%clk 0:02:44]}  Kh7 {[%clk 0:02:22]} 23. Nef5 {[%clk 0:02:44]}  Bxf5 {[%clk 0:02:21]} 24. Nxf5 {[%clk 0:02:45]}  Qf6 {[%clk 0:02:15]} 25. c3 {[%clk 0:02:39]}  Bc7 {[%clk 0:02:15]} 26. Qa2 {[%clk 0:02:34]}  g6 {[%clk 0:02:12]} 27. Ne3 {[%clk 0:02:35]}  Nd7 {[%clk 0:02:11]} 28. b4 {[%clk 0:02:35]}  axb4 {[%clk 0:02:09]} 29. cxb4 {[%clk 0:02:36]}  Kg7 {[%clk 0:02:07]} 30. a5 {[%clk 0:02:30]}  Ra8 {[%clk 0:02:06]} 31. Qf2 {[%clk 0:02:27]}  Qg5 {[%clk 0:01:57]} 32. h4 {[%clk 0:02:25]}  Qe7 {[%clk 0:01:55]} 33. Qg3 {[%clk 0:02:25]}  Nf6 {[%clk 0:01:47]} 34. Nf5+ {[%clk 0:02:24]} 1-0

[Event "December 12 Early 2023"]
[Site "https://www.chess.com"]
[Date "2023.12.12"]
[Round "1"]
[White "NastyaHn"]
[Black "Ginzburg, Yakov"]
[Result "1/2-1/2"]
[Board "198"]
[TimeControl "180+1"]
[BlackFideId "4157176"]
[WhiteElo "2223"]
[BlackElo "2569"]
[BlackTeam "RUS"]
[WhiteClock "0:00:04"]
[BlackClock "0:00:05"]

1. Nc3 {[%clk 0:02:58]}  d5 {[%clk 0:02:56]} 2. e4 {[%clk 0:02:56]}  Nf6 {[%clk 0:02:56]} 3. e5 {[%clk 0:02:53]}  d4 {[%clk 0:02:56]} 4. exf6 {[%clk 0:02:48]}  dxc3 {[%clk 0:02:56]} 5. fxg7 {[%clk 0:02:39]}  cxd2+ {[%clk 0:02:55]} 6. Qxd2 {[%clk 0:02:38]}  Qxd2+ {[%clk 0:02:54]} 7. Bxd2 {[%clk 0:02:38]}  Bxg7 {[%clk 0:02:55]} 8. O-O-O {[%clk 0:02:38]}  Nc6 {[%clk 0:02:51]} 9. Nf3 {[%clk 0:02:24]}  Bg4 {[%clk 0:02:43]} 10. Be2 {[%clk 0:02:17]}  O-O-O {[%clk 0:02:43]} 11. Rhe1 {[%clk 0:02:14]}  Rhg8 {[%clk 0:02:08]} 12. h3 {[%clk 0:02:11]}  Bf5 {[%clk 0:01:51]} 13. g4 {[%clk 0:02:07]}  Bg6 {[%clk 0:01:42]} 14. Bc4 {[%clk 0:01:56]}  e6 {[%clk 0:01:39]} 15. Bg5 {[%clk 0:01:30]}  Rxd1+ {[%clk 0:01:32]} 16. Rxd1 {[%clk 0:01:30]}  Ne5 {[%clk 0:01:30]} 17. Nxe5 {[%clk 0:01:26]}  Bxe5 {[%clk 0:01:31]} 18. Be3 {[%clk 0:01:26]}  a6 {[%clk 0:01:29]} 19. f4 {[%clk 0:01:21]}  Bf6 {[%clk 0:01:26]} 20. Bd3 {[%clk 0:01:09]}  Rd8 {[%clk 0:01:19]} 21. Bxg6 {[%clk 0:00:50]}  Rxd1+ {[%clk 0:00:58]} 22. Kxd1 {[%clk 0:00:45]}  fxg6 {[%clk 0:00:47]} 23. b3 {[%clk 0:00:38]}  Kd7 {[%clk 0:00:48]} 24. Ke2 {[%clk 0:00:37]}  Kd6 {[%clk 0:00:46]} 25. Kd3 {[%clk 0:00:36]}  b5 {[%clk 0:00:45]} 26. c4 {[%clk 0:00:19]}  c6 {[%clk 0:00:45]} 27. Ke4 {[%clk 0:00:19]}  Bd8 {[%clk 0:00:42]} 28. c5+ {[%clk 0:00:18]}  Ke7 {[%clk 0:00:42]} 29. Bd4 {[%clk 0:00:16]}  Bc7 {[%clk 0:00:41]} 30. f5 {[%clk 0:00:13]}  gxf5+ {[%clk 0:00:35]} 31. gxf5 {[%clk 0:00:13]}  Kf7 {[%clk 0:00:35]} 32. Bc3 {[%clk 0:00:11]}  Bg3 {[%clk 0:00:32]} 33. Bd4 {[%clk 0:00:10]}  h5 {[%clk 0:00:31]} 34. Kf3 {[%clk 0:00:10]}  Be1 {[%clk 0:00:30]} 35. Ke4 {[%clk 0:00:09]}  Bb4 {[%clk 0:00:29]} 36. Ke5 {[%clk 0:00:09]}  exf5 {[%clk 0:00:27]} 37. Kxf5 {[%clk 0:00:09]}  Bd2 {[%clk 0:00:27]} 38. Ke5 {[%clk 0:00:08]}  Ke7 {[%clk 0:00:26]} 39. Kf5 {[%clk 0:00:09]}  h4 {[%clk 0:00:21]} 40. Be5 {[%clk 0:00:07]}  Be1 {[%clk 0:00:18]} 41. Bd6+ {[%clk 0:00:07]}  Kf7 {[%clk 0:00:18]} 42. Bf4 {[%clk 0:00:06]}  Bf2 {[%clk 0:00:17]} 43. Bd6 {[%clk 0:00:06]}  Be3 {[%clk 0:00:12]} 44. Ke5 {[%clk 0:00:04]}  Bg1 {[%clk 0:00:12]} 45. Kf5 {[%clk 0:00:05]}  Bf2 {[%clk 0:00:12]} 46. Kg5 {[%clk 0:00:04]}  Bg3 {[%clk 0:00:11]} 47. Kf5 {[%clk 0:00:04]}  a5 {[%clk 0:00:05]} 48. a4 {[%clk 0:00:03]}  bxa4 {[%clk 0:00:03]} 49. bxa4 {[%clk 0:00:03]}  Bf2 {[%clk 0:00:02]} 50. Bc7 {[%clk 0:00:02]}  Be1 {[%clk 0:00:02]} 51. Bb6 {[%clk 0:00:03]}  Bd2 {[%clk 0:00:03]} 52. Bc7 {[%clk 0:00:03]}  Bb4 {[%clk 0:00:03]} 53. Bb6 {[%clk 0:00:03]}  Bc3 {[%clk 0:00:04]} 54. Bc7 {[%clk 0:00:03]}  Be1 {[%clk 0:00:04]} 55. Bb6 {[%clk 0:00:03]}  Bd2 {[%clk 0:00:04]} 56. Bc7 {[%clk 0:00:04]}  Be1 {[%clk 0:00:05]} 1/2-1/2

[Event "December 12 Early 2023"]
[Site "https://www.chess.com"]
[Date "2023.12.12"]
[Round "1"]
[White "Iskusnyh, Sergei"]
[Black "Kuchava, Ana"]
[Result "1-0"]
[Board "199"]
[TimeControl "180+1"]
[WhiteFideId "4120027"]
[BlackFideId "13605348"]
[WhiteElo "2569"]
[BlackElo "2219"]
[WhiteTeam "RUS"]
[BlackTeam "GEO"]
[WhiteClock "0:00:17"]
[BlackClock "0:00:00"]

1. d4 {[%clk 0:03:00]}  d5 {[%clk 0:02:59]} 2. c4 {[%clk 0:03:00]}  e6 {[%clk 0:02:54]} 3. Nf3 {[%clk 0:03:00]}  Nf6 {[%clk 0:02:53]} 4. g3 {[%clk 0:03:00]}  Bb4+ {[%clk 0:02:52]} 5. Nbd2 {[%clk 0:02:57]}  O-O {[%clk 0:02:52]} 6. Bg2 {[%clk 0:02:56]}  c5 {[%clk 0:02:26]} 7. cxd5 {[%clk 0:02:49]}  exd5 {[%clk 0:02:20]} 8. a3 {[%clk 0:02:41]}  Bxd2+ {[%clk 0:02:10]} 9. Bxd2 {[%clk 0:02:42]}  cxd4 {[%clk 0:02:08]} 10. Nxd4 {[%clk 0:02:41]}  Nc6 {[%clk 0:02:09]} 11. Nxc6 {[%clk 0:02:28]}  bxc6 {[%clk 0:02:06]} 12. Rc1 {[%clk 0:02:29]}  Qb6 {[%clk 0:01:56]} 13. O-O {[%clk 0:02:23]}  Bf5 {[%clk 0:01:51]} 14. Be3 {[%clk 0:02:20]}  Qxb2 {[%clk 0:01:40]} 15. Bd4 {[%clk 0:02:15]}  Qxa3 {[%clk 0:01:34]} 16. Bc5 {[%clk 0:02:14]}  Qa6 {[%clk 0:01:34]} 17. Bxf8 {[%clk 0:02:13]}  Rxf8 {[%clk 0:01:33]} 18. Qd4 {[%clk 0:02:08]}  Rc8 {[%clk 0:01:21]} 19. e3 {[%clk 0:02:00]}  Bd3 {[%clk 0:01:16]} 20. Rfd1 {[%clk 0:01:47]}  Bb5 {[%clk 0:01:13]} 21. Ra1 {[%clk 0:01:45]}  Qb6 {[%clk 0:01:07]} 22. Rxa7 {[%clk 0:01:44]}  Qxd4 {[%clk 0:01:02]} 23. exd4 {[%clk 0:01:39]}  h6 {[%clk 0:01:01]} 24. Re1 {[%clk 0:01:34]}  Re8 {[%clk 0:01:00]} 25. Rxe8+ {[%clk 0:01:28]}  Nxe8 {[%clk 0:01:01]} 26. Ra8 {[%clk 0:01:12]}  Kf8 {[%clk 0:01:00]} 27. Rb8 {[%clk 0:01:11]}  Ke7 {[%clk 0:00:58]} 28. Bxd5 {[%clk 0:01:11]}  Nf6 {[%clk 0:00:47]} 29. Rb7+ {[%clk 0:01:07]}  Kd6 {[%clk 0:00:43]} 30. Bxf7 {[%clk 0:01:07]}  Ne4 {[%clk 0:00:42]} 31. Bg6 {[%clk 0:01:03]}  Nd2 {[%clk 0:00:36]} 32. Rxg7 {[%clk 0:01:01]}  Nf3+ {[%clk 0:00:36]} 33. Kg2 {[%clk 0:01:00]}  Nxd4 {[%clk 0:00:37]} 34. Rh7 {[%clk 0:00:54]}  Be2 {[%clk 0:00:32]} 35. Rxh6 {[%clk 0:00:45]}  Bf3+ {[%clk 0:00:21]} 36. Kf1 {[%clk 0:00:43]}  Ke5 {[%clk 0:00:20]} 37. Bd3 {[%clk 0:00:41]}  c5 {[%clk 0:00:19]} 38. Bc4 {[%clk 0:00:37]}  Nf5 {[%clk 0:00:14]} 39. Rh8 {[%clk 0:00:29]}  Kd4 {[%clk 0:00:14]} 40. Be2 {[%clk 0:00:28]}  Bd5 {[%clk 0:00:10]} 41. g4 {[%clk 0:00:25]}  Nd6 {[%clk 0:00:08]} 42. Rd8 {[%clk 0:00:22]}  Nf7 {[%clk 0:00:06]} 43. Rc8 {[%clk 0:00:20]}  Ne5 {[%clk 0:00:04]} 44. h4 {[%clk 0:00:19]}  Be6 {[%clk 0:00:03]} 45. Rd8+ {[%clk 0:00:18]}  Ke4 {[%clk 0:00:03]} 46. h5 {[%clk 0:00:17]}  c4 {[%clk 0:00:00]} 47. Re8 {[%clk 0:00:17]} 1-0